fUST/lending_fUST_20240525
["ID","MTS","AMOUNT","RATE_DAILY","PERIOD"]
[327916957,1716625861176,-438.93470403,0.00025205,4]
[327916958,1716625861190,-500.0,0.00025205,4]
[327916959,1716625861202,-500.0,0.00025205,4]
[327916960,1716625861215,-500.0,0.00025205,4]
[327916961,1716625861226,-500.0,0.00025205,4]
[327916962,1716625861240,-500.0,0.00025205,4]
[327916963,1716625861253,-500.0,0.00025205,4]
[327916964,1716625861266,-500.0,0.00025205,4]
[327916965,1716625861278,-500.0,0.00025205,4]
[327916966,1716625861292,-503.97046417,0.00025205,4]
[327916967,1716625861305,-500.0,0.00025205,4]
[327916968,1716625861318,-503.39038187,0.00025205,4]
[327916969,1716625861330,-500.0,0.00025205,4]
[327916970,1716625861343,-500.0,0.00025205,4]
[327916971,1716625861356,-211.31656102,0.00025205,4]
[327916972,1716625861369,-500.0,0.00025205,4]
[327916973,1716625861381,-500.0,0.00025205,4]
[327916974,1716625861394,-507.19962089,0.00025205,4]
[327916975,1716625861406,-500.0,0.00025205,4]
[327916976,1716625861420,-537.15,0.00025205,4]
[327916977,1716625861432,-500.0,0.00025205,4]
[327916978,1716625861445,-500.0,0.00025205,4]
[327916979,1716625861457,-500.0,0.00025205,4]
[327916980,1716625861470,-500.0,0.00025205,4]
[327916981,1716625861483,-500.0,0.00025205,4]
[327916982,1716625861495,-500.0,0.00025205,4]
[327916983,1716625861508,-570.39,0.00025205,4]
[327916984,1716625861521,-500.0,0.00025205,4]
[327916985,1716625861533,-503.56883941,0.00025205,4]
[327916986,1716625861546,-500.0,0.00025205,4]
[327916987,1716625861559,-500.0,0.00025205,4]
[327916988,1716625861571,-500.0,0.00025205,4]
[327916989,1716625861585,-503.13997336,0.00025205,4]
[327916990,1716625861598,-500.0,0.00025205,4]
[327916991,1716625861611,-500.0,0.00025205,4]
[327916992,1716625861624,-500.0,0.00025205,4]
[327916993,1716625861637,-500.0,0.00025205,4]
[327916994,1716625861650,-504.97220251,0.00025205,4]
[327916995,1716625861662,-500.0,0.00025205,4]
[327916996,1716625861676,-503.4659173,0.00025205,4]
[327916997,1716625861688,-500.0,0.00025205,4]
[327916998,1716625861701,-500.0,0.00025205,4]
[327916999,1716625861714,-500.0,0.00025205,4]
[327917000,1716625861727,-500.0,0.00025205,4]
[327917001,1716625861739,-500.0,0.00025205,4]
[327917002,1716625861752,-500.0,0.00025205,4]
[327917003,1716625861765,-500.0,0.00025205,4]
[327917004,1716625861778,-500.0,0.00025205,4]
[327917005,1716625861790,-500.0,0.00025205,4]
[327917006,1716625861803,-500.0,0.00025205,4]
[327917007,1716625861816,-500.0,0.00025205,4]
[327917008,1716625861833,-721.25,0.00025205,4]
[327917009,1716625861845,-500.0,0.00025205,4]
[327917010,1716625861860,-500.0,0.00025205,4]
[327917011,1716625861873,-500.0,0.00025205,4]
[327917012,1716625861886,-964.17,0.00025205,4]
[327917013,1716625862023,-500.0,0.00025205,4]
[327917014,1716625862033,-500.0,0.00025205,4]
[327917015,1716625862043,-500.0,0.00025205,4]
[327917016,1716625862052,-536.36,0.00025205,4]
[327917017,1716625862061,-500.0,0.00025205,4]
[327917018,1716625862071,-500.0,0.00025205,4]
[327917019,1716625862081,-500.0,0.00025205,2]
[327917020,1716625862090,-500.0,0.00025205,4]
[327917021,1716625862099,-500.0,0.00025205,4]
[327917022,1716625862109,-500.0,0.00025205,4]
[327917023,1716625862118,-500.0,0.00025205,4]
[327917024,1716625862127,-464.76290284,0.00025205,4]
[327917025,1716625862137,-500.0,0.00025205,4]
[327917026,1716625862146,-554.71,0.00025205,4]
[327917027,1716625862156,-500.0,0.00025205,4]
[327917028,1716625862165,-709.62,0.00025205,4]
[327917029,1716625862174,-390.27676071,0.00025205,4]
[327917030,1716625862184,-500.0,0.00025205,4]
[327917031,1716625862193,-570.57,0.00025205,4]
[327917032,1716625862203,-500.0,0.00025205,4]
[327917033,1716625862212,-500.0,0.00025205,4]
[327917034,1716625862221,-513.09653226,0.00025205,4]
[327917035,1716625862230,-500.0,0.00025205,4]
[327917036,1716625862239,-526.11,0.00025205,4]
[327917037,1716625862248,-500.0,0.00025205,4]
[327917038,1716625862258,-500.0,0.00025205,4]
[327917039,1716625862267,-165.13564769,0.00025205,4]
[327917040,1716625862276,-500.0,0.00025205,4]
[327917041,1716625862285,-547.14,0.00025205,4]
[327917042,1716625862295,-500.0,0.00025205,4]
[327917043,1716625862304,-500.0,0.00025205,4]
[327917044,1716625862313,-521.18,0.00025205,4]
[327917045,1716625862322,-500.0,0.00025205,4]
[327917046,1716625862330,-571.92,0.00025205,4]
[327917047,1716625862339,-500.0,0.00025205,4]
[327917048,1716625862349,-500.0,0.00025205,4]
[327917049,1716625862358,-500.0,0.00025205,4]
[327917050,1716625862367,-500.0,0.00025205,4]
[327917051,1716625862376,-503.18,0.00025205,4]
[327917052,1716625862386,-500.0,0.00025205,4]
[327917053,1716625862395,-2441.44,0.00025205,4]
[327917054,1716625862403,-3812.61,0.00025205,4]
[327917055,1716625862412,-500.0,0.00025205,4]
[327917056,1716625862425,-500.0,0.00025205,4]
[327917057,1716625862435,-500.0,0.00025205,4]
[327917058,1716625862444,-500.0,0.00025205,4]
[327917059,1716625862453,-545.2,0.00025205,4]
[327917060,1716625862463,-500.0,0.00025205,4]
[327917061,1716625862472,-500.0,0.00025205,4]
[327917062,1716625862481,-500.0,0.00025205,4]
[327917063,1716625862490,-500.0,0.00025205,4]
[327917064,1716625862500,-500.0,0.00025205,4]
[327917065,1716625862509,-500.0,0.00025205,4]
[327917066,1716625862519,-311.42526641,0.00025205,4]
[327917067,1716625862528,-500.0,0.00025205,4]
[327917068,1716625862537,-818.85,0.00025205,4]
[327917069,1716625862547,-512.82,0.00025205,4]
[327917070,1716625862556,-500.0,0.00025205,4]
[327917071,1716625862565,-500.0,0.00025205,4]
[327917072,1716625862574,-500.0,0.00025205,4]
[327917073,1716625862584,-500.0,0.00025205,4]
[327917074,1716625862594,-699.92,0.00025205,4]
[327917075,1716625862603,-500.0,0.00025205,4]
[327917076,1716625862612,-625.69,0.00025205,4]
[327917077,1716625862621,-1637.53,0.00025205,4]
[327917078,1716625862630,-500.0,0.00025205,4]
[327917079,1716625862639,-500.0,0.00025205,4]
[327917080,1716625862648,-500.0,0.00025205,4]
[327917081,1716625862657,-500.0,0.00025205,4]
[327917082,1716625862671,-500.0,0.00025205,4]
[327917083,1716625862680,-500.0,0.00025205,4]
[327917084,1716625862689,-692.07,0.00025205,4]
[327917085,1716625862698,-1647.0,0.00025205,4]
[327917086,1716625862706,-500.0,0.00025205,4]
[327917087,1716625862715,-500.0,0.00025205,4]
[327917088,1716625862725,-500.0,0.00025205,4]
[327917089,1716625862734,-500.0,0.00025205,4]
[327917090,1716625862743,-500.0,0.00025205,4]
[327917091,1716625862751,-500.0,0.00025205,4]
[327917092,1716625862760,-500.0,0.00025205,4]
[327917093,1716625862770,-500.0,0.00025205,4]
[327917094,1716625862779,-1590.4,0.00025205,4]
[327917095,1716625862788,-500.0,0.00025205,4]
[327917096,1716625862798,-622.77524808,0.00025205,4]
[327917097,1716625862807,-500.0,0.00025205,4]
[327917098,1716625862818,-608.21,0.00025205,4]
[327917099,1716625862827,-500.0,0.00025205,4]
[327917100,1716625862839,-500.0,0.00025205,4]
[327917101,1716625862849,-4026.36,0.00025205,4]
[327917102,1716625862859,-503.448886,0.00025205,4]
[327917103,1716625862868,-250.0,0.00025205,4]
[327917104,1716625862878,-509.49,0.00025205,4]
[327917105,1716625862888,-500.0,0.00025205,4]
[327917106,1716625862897,-718.05,0.00025205,4]
[327917107,1716625862908,-500.0,0.00025205,4]
[327917108,1716625862921,-4651.21,0.00025205,4]
[327917109,1716625862930,-500.0,0.00025205,4]
[327917110,1716625862939,-807.26,0.00025205,4]
[327917111,1716625862948,-951.39,0.00025205,4]
[327917112,1716625862958,-500.0,0.00025205,4]
[327917113,1716625862967,-866.31,0.00025205,4]
[327917114,1716625862976,-1651.56,0.00025205,4]
[327917115,1716625862985,-500.0,0.00025205,4]
[327917116,1716625862995,-500.0,0.00025205,4]
[327917117,1716625863005,-500.0,0.00025205,4]
[327917118,1716625863014,-500.0,0.00025205,4]
[327917119,1716625863023,-728.56,0.00025205,4]
[327917120,1716625863032,-505.04814797,0.00025205,4]
[327917121,1716625863043,-500.0,0.00025205,4]
[327917122,1716625863053,-500.0,0.00025205,4]
[327917123,1716625863064,-5083.02,0.00025205,4]
[327917124,1716625863073,-500.0,0.00025205,4]
[327917125,1716625863083,-500.0,0.00025205,4]
[327917126,1716625863094,-500.0,0.00025205,4]
[327917127,1716625863103,-500.0,0.00025205,4]
[327917128,1716625863112,-504.66967093,0.00025205,4]
[327917129,1716625863122,-646.46619433,0.00025205,4]
[327917130,1716625863131,-500.0,0.00025205,4]
[327917131,1716625863140,-500.0,0.00025205,4]
[327917132,1716625863149,-500.0,0.00025205,4]
[327917133,1716625863158,-606.33,0.00025205,4]
[327917134,1716625863170,-500.0,0.00025205,4]
[327917135,1716625863180,-500.0,0.00025205,4]
[327917136,1716625863189,-500.0,0.00025205,4]
[327917137,1716625863198,-500.0,0.00025205,4]
[327917138,1716625863207,-500.0,0.00025205,4]
[327917139,1716625863216,-500.0,0.00025205,4]
[327917140,1716625863225,-500.0,0.00025205,4]
[327917141,1716625863235,-500.0,0.00025205,4]
[327917142,1716625863244,-500.0,0.00025205,4]
[327917143,1716625863253,-500.0,0.00025205,4]
[327917144,1716625863263,-600.0,0.00025249,2]
[327917145,1716625863272,-1143.80277163,0.00025299,2]
[327917146,1716625863282,-160.0,0.0002532,6]
[327917147,1716625863291,-528.15,0.00025479,5]
[327917148,1716625863300,-233.90615418,0.00025479,5]
[327917149,1716625863309,-435.05583063,0.00025479,5]
[327917150,1716625863319,-500.0,0.00025479,5]
[327917151,1716625863328,-659.81,0.00025479,5]
[327917152,1716625863338,-500.0,0.00025479,5]
[327917153,1716625863347,-500.0,0.00025479,5]
[327917154,1716625863356,-500.0,0.00025479,5]
[327917155,1716625863365,-768.52,0.00025479,5]
[327917156,1716625863375,-500.0,0.00025479,2]
[327917157,1716625863384,-500.0,0.00025479,5]
[327917158,1716625863393,-500.0,0.00025479,5]
[327917159,1716625863403,-500.0,0.00025479,5]
[327917160,1716625863412,-400.27690854,0.00025479,5]
[327917161,1716625863424,-500.0,0.00025479,5]
[327917162,1716625863433,-500.0,0.00025479,5]
[327917163,1716625863442,-500.0,0.00025479,5]
[327917164,1716625863452,-500.0,0.00025479,5]
[327917165,1716625863461,-500.0,0.00025479,5]
[327917166,1716625863470,-500.0,0.00025479,5]
[327917167,1716625863479,-500.0,0.00025479,5]
[327917168,1716625863489,-500.0,0.00025479,5]
[327917169,1716625863500,-500.0,0.00025479,5]
[327917170,1716625863509,-394.39103198,0.00025479,5]
[327917171,1716625863520,-500.0,0.00025479,5]
[327917172,1716625863530,-500.0,0.00025479,5]
[327917173,1716625863539,-500.0,0.00025479,5]
[327917174,1716625863549,-500.0,0.00025479,5]
[327917175,1716625863558,-537.15,0.00025479,5]
[327917176,1716625863569,-500.0,0.00025479,5]
[327917177,1716625863579,-500.0,0.00025479,5]
[327917178,1716625863590,-500.0,0.00025479,5]
[327917179,1716625863602,-500.0,0.00025479,5]
[327917180,1716625863611,-500.0,0.00025479,5]
[327917181,1716625863621,-500.0,0.00025479,5]
[327917182,1716625863631,-570.39,0.00025479,5]
[327917183,1716625863641,-500.0,0.00025479,5]
[327917184,1716625863650,-500.0,0.00025479,5]
[327917185,1716625863660,-500.0,0.00025479,5]
[327917186,1716625863671,-500.0,0.00025479,5]
[327917187,1716625863681,-506.47537009,0.00025479,5]
[327917188,1716625863691,-500.0,0.00025479,5]
[327917189,1716625863700,-500.0,0.00025479,5]
[327917190,1716625863709,-509.18578467,0.00025479,5]
[327917191,1716625863719,-500.0,0.00025479,5]
[327917192,1716625863728,-500.0,0.00025479,5]
[327917193,1716625863738,-500.0,0.00025479,5]
[327917194,1716625863748,-500.0,0.00025479,5]
[327917195,1716625863757,-500.0,0.00025479,5]
[327917196,1716625863767,-500.0,0.00025479,5]
[327917197,1716625863776,-500.0,0.00025479,5]
[327917198,1716625863785,-500.0,0.00025479,5]
[327917199,1716625863794,-500.0,0.00025479,5]
[327917200,1716625863804,-500.0,0.00025479,5]
[327917201,1716625863815,-500.0,0.00025479,5]
[327917202,1716625863830,-500.0,0.00025479,5]
[327917203,1716625863840,-721.25,0.00025479,5]
[327917204,1716625863850,-500.0,0.00025479,5]
[327917205,1716625863860,-500.0,0.00025479,5]
[327917206,1716625863872,-500.0,0.00025479,5]
[327917207,1716625863882,-964.17,0.00025479,5]
[327917208,1716625863893,-500.0,0.00025479,5]
[327917209,1716625863903,-500.0,0.00025479,5]
[327917210,1716625863914,-459.91329082,0.00025479,5]
[327917211,1716625863924,-536.36,0.00025479,5]
[327917212,1716625864023,-500.0,0.00025479,5]
[327917213,1716625864032,-500.0,0.00025479,5]
[327917214,1716625864041,-500.0,0.00025479,2]
[327917215,1716625864050,-588.90412482,0.00025479,5]
[327917216,1716625864060,-500.0,0.00025479,5]
[327917217,1716625864069,-500.0,0.00025479,5]
[327917218,1716625864078,-500.0,0.00025479,5]
[327917219,1716625864087,-500.0,0.00025479,5]
[327917220,1716625864097,-554.71,0.00025479,5]
[327917221,1716625864106,-500.0,0.00025479,5]
[327917222,1716625864116,-709.62,0.00025479,5]
[327917223,1716625864125,-500.0,0.00025479,5]
[327917224,1716625864135,-567.16694606,0.00025479,5]
[327917225,1716625864144,-570.57,0.00025479,5]
[327917226,1716625864153,-500.0,0.00025479,5]
[327917227,1716625864162,-500.0,0.00025479,5]
[327917228,1716625864172,-526.11,0.00025479,5]
[327917229,1716625864181,-500.0,0.00025479,5]
[327917230,1716625864190,-600.04310429,0.00025479,5]
[327917231,1716625864199,-500.0,0.00025479,5]
[327917232,1716625864208,-547.14,0.00025479,5]
[327917233,1716625864216,-507.51167745,0.00025479,5]
[327917234,1716625864226,-500.0,0.00025479,5]
[327917235,1716625864236,-521.18,0.00025479,5]
[327917236,1716625864245,-500.0,0.00025479,5]
[327917237,1716625864254,-571.92,0.00025479,5]
[327917238,1716625864264,-500.0,0.00025479,5]
[327917239,1716625864275,-474.94073858,0.00025479,5]
[327917240,1716625864285,-500.0,0.00025479,5]
[327917241,1716625864295,-500.0,0.00025479,5]
[327917242,1716625864305,-503.18,0.00025479,5]
[327917243,1716625864316,-500.0,0.00025479,5]
[327917244,1716625864326,-2441.44,0.00025479,5]
[327917245,1716625864335,-3812.61,0.00025479,5]
[327917246,1716625864344,-500.0,0.00025479,5]
[327917247,1716625864354,-565.0987108,0.00025479,5]
[327917248,1716625864362,-500.0,0.00025479,5]
[327917249,1716625864372,-500.0,0.00025479,5]
[327917250,1716625864381,-545.2,0.00025479,5]
[327917251,1716625864390,-500.0,0.00025479,5]
[327917252,1716625864400,-500.0,0.00025479,5]
[327917253,1716625864409,-500.0,0.00025479,5]
[327917254,1716625864418,-500.0,0.00025479,5]
[327917255,1716625864428,-500.0,0.00025479,5]
[327917256,1716625864439,-500.0,0.00025479,5]
[327917257,1716625864449,-500.0,0.00025479,5]
[327917258,1716625864459,-818.85,0.00025479,5]
[327917259,1716625864469,-512.82,0.00025479,5]
[327917260,1716625864478,-500.0,0.00025479,5]
[327917261,1716625864487,-500.0,0.00025479,5]
[327917262,1716625864497,-500.0,0.00025479,5]
[327917263,1716625864506,-500.0,0.00025479,5]
[327917264,1716625864516,-699.92,0.00025479,5]
[327917265,1716625864525,-316.36364821,0.00025479,5]
[327917266,1716625864534,-625.69,0.00025479,5]
[327917267,1716625864543,-1637.53,0.00025479,5]
[327917268,1716625864553,-500.0,0.00025479,5]
[327917269,1716625864563,-500.0,0.00025479,5]
[327917270,1716625864572,-500.0,0.00025479,5]
[327917271,1716625864582,-500.0,0.00025479,5]
[327917272,1716625864592,-500.0,0.00025479,5]
[327917273,1716625864602,-500.0,0.00025479,5]
[327917274,1716625864612,-692.07,0.00025479,5]
[327917275,1716625864622,-1647.0,0.00025479,5]
[327917276,1716625864633,-500.0,0.00025479,5]
[327917277,1716625864643,-500.0,0.00025479,5]
[327917278,1716625864656,-500.0,0.00025479,5]
[327917279,1716625864665,-500.0,0.00025479,5]
[327917280,1716625864675,-500.0,0.00025479,5]
[327917281,1716625864684,-500.0,0.00025479,5]
[327917282,1716625864694,-500.0,0.00025479,5]
[327917283,1716625864707,-518.82666176,0.00025479,5]
[327917284,1716625864717,-1590.4,0.00025479,5]
[327917285,1716625864726,-500.0,0.00025479,5]
[327917286,1716625864739,-500.0,0.00025479,5]
[327917287,1716625864749,-608.21,0.00025479,5]
[327917288,1716625864758,-500.0,0.00025479,5]
[327917289,1716625864767,-500.0,0.00025479,5]
[327917290,1716625864776,-4026.36,0.00025479,5]
[327917291,1716625864785,-250.0,0.00025479,5]
[327917292,1716625864795,-509.49,0.00025479,5]
[327917293,1716625864804,-500.0,0.00025479,5]
[327917294,1716625864814,-718.05,0.00025479,5]
[327917295,1716625864824,-500.0,0.00025479,5]
[327917296,1716625864834,-4651.21,0.00025479,5]
[327917297,1716625864844,-500.0,0.00025479,5]
[327917298,1716625864853,-807.26,0.00025479,5]
[327917299,1716625864862,-951.39,0.00025479,5]
[327917300,1716625864871,-500.0,0.00025479,5]
[327917301,1716625864880,-866.31,0.00025479,5]
[327917302,1716625864889,-1651.56,0.00025479,5]
[327917303,1716625864899,-500.0,0.00025479,5]
[327917304,1716625864910,-305.90869517,0.00025479,5]
[327917305,1716625864921,-500.0,0.00025479,5]
[327917306,1716625864930,-500.0,0.00025479,5]
[327917307,1716625864939,-728.56,0.00025479,5]
[327917308,1716625864948,-500.0,0.00025479,5]
[327917309,1716625864957,-500.0,0.00025479,5]
[327917310,1716625864966,-5083.02,0.00025479,5]
[327917311,1716625864976,-500.0,0.00025479,5]
[327917312,1716625864986,-500.0,0.00025479,5]
[327917313,1716625864997,-500.0,0.00025479,5]
[327917314,1716625865007,-500.0,0.00025479,5]
[327917315,1716625865017,-500.0,0.00025479,5]
[327917316,1716625865026,-232.99210699,0.00025479,5]
[327917317,1716625865036,-500.0,0.00025479,5]
[327917318,1716625865045,-606.33,0.00025479,5]
[327917319,1716625865054,-500.0,0.00025479,5]
[327917320,1716625865064,-500.0,0.00025479,5]
[327917321,1716625865074,-500.0,0.00025479,5]
[327917322,1716625865083,-513.61227986,0.00025479,5]
[327917323,1716625865093,-500.0,0.00025479,5]
[327917324,1716625865102,-500.0,0.00025479,5]
[327917325,1716625865111,-500.0,0.00025479,5]
[327917326,1716625865120,-500.0,0.00025479,5]
[327917327,1716625865130,-373.0664114,0.00025479,2]
[327917328,1716625865139,-292.676324,0.00025479,2]
[327917329,1716625865149,-291.6248309,0.00025479,2]
[327917330,1716625865158,-291.6248309,0.00025479,2]
[327917331,1716625865170,-603.37671181,0.00025512,2]
[327917332,1716625865179,-160.0,0.00025575,7]
[327917333,1716625865188,-535.5,0.00025732,5]
[327917334,1716625865198,-528.15,0.00025753,6]
[327917335,1716625865207,-500.0,0.00025753,6]
[327917336,1716625865217,-659.81,0.00025753,6]
[327917337,1716625865226,-500.0,0.00025753,6]
[327917338,1716625865235,-500.0,0.00025753,6]
[327917339,1716625865244,-469.87425737,0.00025753,6]
[327917340,1716625865253,-768.52,0.00025753,6]
[327917341,1716625865262,-500.18995139,0.00025753,2]
[327917342,1716625865271,-500.0,0.00025753,6]
[327917343,1716625865280,-500.0,0.00025753,6]
[327917344,1716625865289,-500.0,0.00025753,6]
[327917345,1716625865298,-500.0,0.00025753,6]
[327917346,1716625865307,-500.0,0.00025753,6]
[327917347,1716625865317,-500.0,0.00025753,6]
[327917348,1716625865326,-500.0,0.00025753,6]
[327917349,1716625865335,-500.0,0.00025753,6]
[327917350,1716625865344,-500.0,0.00025753,6]
[327917351,1716625865353,-500.0,0.00025753,6]
[327917352,1716625865362,-504.09706983,0.00025753,6]
[327917353,1716625865372,-500.0,0.00025753,6]
[327917354,1716625865381,-500.0,0.00025753,6]
[327917355,1716625865390,-500.0,0.00025753,6]
[327917356,1716625865399,-500.0,0.00025753,6]
[327917357,1716625865408,-500.0,0.00025753,6]
[327917358,1716625865419,-537.15,0.00025753,6]
[327917359,1716625865428,-500.0,0.00025753,6]
[327917360,1716625865438,-500.0,0.00025753,6]
[327917361,1716625865447,-500.0,0.00025753,6]
[327917362,1716625865456,-500.0,0.00025753,6]
[327917363,1716625865465,-500.0,0.00025753,6]
[327917364,1716625865474,-500.0,0.00025753,6]
[327917365,1716625865483,-570.39,0.00025753,6]
[327917366,1716625865492,-500.0,0.00025753,6]
[327917367,1716625865501,-500.0,0.00025753,6]
[327917368,1716625865510,-500.0,0.00025753,6]
[327917369,1716625865519,-500.0,0.00025753,6]
[327917370,1716625865528,-500.0,0.00025753,6]
[327917371,1716625865537,-500.0,0.00025753,6]
[327917372,1716625865546,-500.0,0.00025753,6]
[327917373,1716625865555,-500.0,0.00025753,6]
[327917374,1716625865564,-500.0,0.00025753,6]
[327917375,1716625865573,-500.0,0.00025753,6]
[327917376,1716625865582,-500.0,0.00025753,6]
[327917377,1716625865591,-500.0,0.00025753,6]
[327917378,1716625865600,-500.0,0.00025753,6]
[327917379,1716625865609,-500.0,0.00025753,6]
[327917380,1716625865619,-500.0,0.00025753,6]
[327917381,1716625865628,-500.0,0.00025753,6]
[327917382,1716625865637,-500.0,0.00025753,6]
[327917383,1716625865646,-500.0,0.00025753,6]
[327917384,1716625865655,-721.25,0.00025753,6]
[327917385,1716625865664,-500.0,0.00025753,6]
[327917386,1716625865675,-500.0,0.00025753,6]
[327917387,1716625865684,-500.0,0.00025753,6]
[327917388,1716625865693,-964.17,0.00025753,6]
[327917389,1716625865703,-500.0,0.00025753,6]
[327917390,1716625865712,-500.0,0.00025753,6]
[327917391,1716625865722,-536.36,0.00025753,6]
[327917392,1716625865731,-504.97694484,0.00025753,6]
[327917393,1716625865740,-173.02,0.00025753,6]
[327917394,1716625865749,-500.0,0.00025753,2]
[327917395,1716625865845,-500.0,0.00025753,6]
[327917396,1716625865854,-500.0,0.00025753,6]
[327917397,1716625865865,-402.60480696,0.00025753,6]
[327917398,1716625865875,-500.0,0.00025753,6]
[327917399,1716625865884,-554.71,0.00025753,6]
[327917400,1716625865894,-500.0,0.00025753,6]
[327917401,1716625865904,-709.62,0.00025753,6]
[327917402,1716625865913,-500.0,0.00025753,6]
[327917403,1716625865923,-570.57,0.00025753,6]
[327917404,1716625865932,-500.0,0.00025753,6]
[327917405,1716625865941,-500.0,0.00025753,6]
[327917406,1716625865950,-526.11,0.00025753,6]
[327917407,1716625865960,-500.0,0.00025753,6]
[327917408,1716625865969,-500.0,0.00025753,6]
[327917409,1716625865978,-547.14,0.00025753,6]
[327917410,1716625865987,-317.02719904,0.00025753,6]
[327917411,1716625865997,-521.18,0.00025753,6]
[327917412,1716625866007,-500.0,0.00025753,6]
[327917413,1716625866016,-571.92,0.00025753,6]
[327917414,1716625866025,-504.8347606,0.00025753,6]
[327917415,1716625866035,-500.0,0.00025753,6]
[327917416,1716625866044,-503.18,0.00025753,6]
[327917417,1716625866054,-500.0,0.00025753,6]
[327917418,1716625866063,-500.0,0.00025753,6]
[327917419,1716625866072,-2441.44,0.00025753,6]
[327917420,1716625866081,-3812.61,0.00025753,6]
[327917421,1716625866090,-500.0,0.00025753,6]
[327917422,1716625866099,-500.0,0.00025753,6]
[327917423,1716625866108,-500.0,0.00025753,6]
[327917424,1716625866118,-545.2,0.00025753,6]
[327917425,1716625866127,-500.0,0.00025753,6]
[327917426,1716625866136,-500.0,0.00025753,6]
[327917427,1716625866145,-500.0,0.00025753,6]
[327917428,1716625866154,-500.0,0.00025753,6]
[327917429,1716625866163,-500.0,0.00025753,6]
[327917430,1716625866173,-500.0,0.00025753,6]
[327917431,1716625866183,-500.0,0.00025753,6]
[327917432,1716625866192,-818.85,0.00025753,6]
[327917433,1716625866201,-512.82,0.00025753,6]
[327917434,1716625866210,-500.0,0.00025753,6]
[327917435,1716625866219,-500.0,0.00025753,6]
[327917436,1716625866228,-500.0,0.00025753,6]
[327917437,1716625866237,-500.0,0.00025753,6]
[327917438,1716625866246,-699.92,0.00025753,6]
[327917439,1716625866255,-625.69,0.00025753,6]
[327917440,1716625866264,-1637.53,0.00025753,6]
[327917441,1716625866274,-500.0,0.00025753,6]
[327917442,1716625866284,-500.0,0.00025753,6]
[327917443,1716625866293,-500.0,0.00025753,6]
[327917444,1716625866303,-500.0,0.00025753,6]
[327917445,1716625866313,-500.0,0.00025753,6]
[327917446,1716625866323,-500.0,0.00025753,6]
[327917447,1716625866331,-692.07,0.00025753,6]
[327917448,1716625866342,-1647.0,0.00025753,6]
[327917449,1716625866351,-500.0,0.00025753,6]
[327917450,1716625866359,-500.0,0.00025753,6]
[327917451,1716625866370,-467.77149147,0.00025753,6]
[327917452,1716625866379,-500.0,0.00025753,6]
[327917453,1716625866389,-212.43945123,0.00025753,6]
[327917454,1716625866398,-500.0,0.00025753,6]
[327917455,1716625866408,-500.0,0.00025753,6]
[327917456,1716625866417,-1590.4,0.00025753,6]